bitfinex-derivatives/quotes_SOLF0:USTF0_20250530
["timestamp","ask_amount","ask_price","bid_price","bid_amount"]
[1748567112904,17.39861911,162.45,162.32,2.0788]
[1748567113133,17.39861911,162.45,162.31,2.0511]
[1748567113307,0.04680239,162.4,162.36,0.04068626]
[1748567113606,0.04680239,162.4,162.26,2.0788]
[1748567113797,735.55861911,162.45,162.26,2.0788]
[1748567114010,17.39861911,162.41,162.26,2.0788]
[1748567114225,736.58,162.45,162.17,531.44]
[1748567114226,17.39861911,162.37,162.17,531.44]
[1748567114417,4.1734,162.4,162.17,531.44]
[1748567114418,17.39861911,162.33,162.2,2.106]
[1748567114715,0.0448146,162.28,162.2,24.36]
[1748567115204,2.0693146,162.28,162.2,24.36]
[1748567115818,2.0693146,162.28,162.22,0.04207855]
[1748567116003,2.0693146,162.28,162.2,24.36]
[1748567116609,0.0448146,162.28,162.2,24.36]
[1748567117204,0.0448146,162.28,162.22,0.04348397]
[1748567118714,17.50286239,162.28,162.22,0.04348397]
[1748567119221,17.45804779,162.24,162.2,24.36]
[1748567119713,1.9741,162.23,162.2,24.36]
[1748567120108,2.01871201,162.23,162.07,531.44]
[1748567120321,0.0392853,162.17,162.05,79.4816]
[1748567120517,17.45804779,162.12,161.97,2.0179]
[1748567120715,2.1534,162.11,161.96,2.1416]
[1748567120916,0.04402767,162.06,161.96,2.1416]
[1748567121110,0.04181383,162.03,161.96,2.1416]
[1748567123117,0.04181383,162.03,161.94,2.0843]
[1748567123813,0.04181383,162.03,161.95,17.45804779]
[1748567124009,0.04181383,162.03,161.95,19.50184779]
[1748567125812,531.96,162.13,161.99,17.45804779]
[1748567126218,77.34,162.14,162.0,62.0]
[1748567126417,77.34,162.14,162.01,79.4357]
[1748567126709,77.4,162.2,162.01,79.4357]
[1748567126927,2.1317,162.23,162.07,17.45804779]
[1748567127122,2.1317,162.23,162.08,2.0765]
[1748567127317,17.45804779,162.22,162.08,2.0765]
[1748567128014,0.04465362,162.17,162.13,0.04621208]
[1748567128426,0.04465362,162.17,162.01,79.4357]
[1748567128640,17.45804779,162.14,162.01,2.0357]
[1748567128924,2.1317,162.13,162.01,2.0357]
[1748567129129,186.6,162.17,162.01,19.49374779]
[1748567129322,0.04200974,162.11,162.02,77.42]
[1748567129523,0.04200974,162.11,162.07,0.04239759]
[1748567130252,4.1814,162.23,162.07,0.04239759]
[1748567130440,2.042,162.23,162.06,2.0425]
[1748567131027,2.042,162.23,162.07,2.1003]
[1748567131237,0.04018306,162.17,162.13,0.04024515]
[1748567131436,0.04018306,162.17,162.13,0.04614538]
[1748567134555,17.45804779,162.15,162.02,77.42]
[1748567134736,1.9509,162.14,162.02,77.42]
[1748567134928,79.3709,162.14,162.01,2.0357]
[1748567135126,2.0381,162.13,162.01,2.0357]
[1748567135330,19.49614779,162.13,162.01,2.0357]
[1748567135525,0.04664594,162.09,162.05,0.03826195]
[1748567137361,79.3709,162.14,162.05,0.03826195]
[1748567137362,77.42,162.14,162.05,0.03826195]
[1748567137636,532.56,162.17,162.05,0.03826195]
[1748567137833,79.5625,162.2,162.04,17.45804779]
[1748567138035,532.68,162.25,162.08,17.45804779]
[1748567138332,532.68,162.25,162.15,0.04291711]
[1748567138333,0.04243435,162.18,162.15,0.04291711]
[1748567138640,0.0430522,162.18,162.15,0.04552369]
[1748567139845,0.0430522,162.18,162.04,77.44]
[1748567140047,2.0551,162.22,162.06,17.45804779]
[1748567140258,2.1385,162.24,162.06,17.45804779]
[1748567140832,0.04480077,162.17,162.13,0.0393842]
[1748567141336,532.68,162.25,162.13,0.0393842]
[1748567141536,77.44,162.27,162.12,77.44]
[1748567141839,2.1315,162.3,162.12,77.44]
[1748567142051,2.1315,162.3,162.15,17.45804779]
[1748567142443,0.04177062,162.24,162.21,0.0448577]
[1748567142867,77.44,162.34,162.21,83.6448577]
[1748567143058,17.45804779,162.39,162.23,17.45804779]
[1748567143257,77.44,162.4,162.24,2.0717]
[1748567143745,0.04027726,162.34,162.3,0.04575017]
[1748567143940,0.04027726,162.34,162.3,0.04065907]
[1748567145747,6.113,162.46,162.3,0.04065907]
[1748567146055,6.113,162.46,162.28,77.42]
[1748567146056,23.57104779,162.46,162.28,77.42]
[1748567146838,0.04429272,162.39,162.35,0.04604376]
[1748567147040,0.04429272,162.39,162.35,0.04547219]
[1748567147549,2.1315,162.46,162.35,76.28547219]
[1748567147741,2.1315,162.46,162.35,76.24]
[1748567148445,0.0456731,162.42,162.39,0.04427059]
[1748567148640,0.04448282,162.42,162.39,0.04688613]
[1748567149248,532.54,162.5,162.39,0.04688613]
[1748567149546,549.81804779,162.58,162.39,17.45804779]
[1748567149743,2.0497,162.57,162.4,64.09]
[1748567150367,4.0281,162.64,162.47,17.50522088]
[1748567150665,2.0133,162.64,162.51,17.45804779]
[1748567150864,78.2884,162.68,162.52,1.9734]
[1748567151064,2.0684,162.68,162.52,1.9734]
[1748567151262,76.22,162.74,162.55,17.45804779]
[1748567151465,0.04098572,162.66,162.63,0.04554195]
[1748567151747,0.04006574,162.66,162.63,0.04065887]
[1748567153246,2.0769,162.78,162.63,0.04065887]
[1748567153470,1.9853,162.77,162.64,17.45804779]
[1748567153759,1.9853,162.77,162.64,79.45804779]
[1748567154237,0.04208446,162.72,162.69,0.04373891]
[1748567154438,0.04682183,162.72,162.69,0.0441349]
[1748567155955,0.04682183,162.72,162.57,608.28]
[1748567156256,1.9853,162.73,162.57,608.28]
[1748567156462,78.2373,162.72,162.57,608.28]
[1748567156948,78.2373,162.72,162.63,0.04474172]
[1748567157245,0.04397837,162.66,162.63,0.04474172]
[1748567159257,6.18397837,162.66,162.54,76.12]
[1748567159446,19.48156857,162.7,162.54,76.12]
[1748567159644,19.48156857,162.7,162.52,2.1438]
[1748567160146,78.2373,162.72,162.52,2.1438]
[1748567160368,0.04367098,162.64,162.6,0.03951007]
[1748567160648,0.0410352,162.64,162.6,0.04575462]
[1748567162470,1.9853,162.73,162.6,0.04575462]
[1748567162675,1.9853,162.73,162.57,76.1]
[1748567163242,607.58,162.77,162.57,95.58156857]
[1748567163447,0.03936454,162.69,162.65,0.04356751]
[1748567163649,0.04551256,162.69,162.65,0.04480509]
[1748567165744,78.1591,162.82,162.65,0.04480509]
[1748567165950,78.1591,162.82,162.62,63.9821]
[1748567166349,2.084,162.83,162.66,19.48156857]
[1748567166555,2.084,162.83,162.67,260.3]
[1748567166872,76.06,162.88,162.73,0.04542113]
[1748567167066,531.14,162.93,162.74,76.06]
[1748567167067,533.2296,162.93,162.74,76.06]
[1748567167272,533.2296,162.93,162.75,78.0421]
[1748567167467,533.2296,162.93,162.76,2.0392]
[1748567167756,533.2296,162.93,162.76,4.0897]
[1748567168048,0.04561574,162.86,162.83,0.04286559]
[1748567168256,0.04265292,162.86,162.83,0.04115199]
[1748567169065,6.18265292,162.86,162.75,76.04]
[1748567169270,533.2296,162.93,162.75,76.04]
[1748567170058,0.03938537,162.86,162.82,0.03971128]
[1748567170253,0.03938537,162.86,162.82,0.04244299]
[1748567173863,0.03938537,162.86,162.74,76.02]
[1748567174065,259.72,162.89,162.7,2.0254]
[1748567174276,19.48156857,162.88,162.66,76.0]
[1748567174475,19.48156857,162.88,162.68,2.051]
[1748567174660,4.0171,162.87,162.68,2.051]
[1748567174961,0.04724752,162.79,162.76,0.04424166]
[1748567175160,0.04574498,162.79,162.76,0.04403831]
[1748567175374,0.04574498,162.79,162.65,1.9578]
[1748567175584,76.0,162.81,162.65,1.9578]
[1748567176155,76.0,162.81,162.64,530.66]
[1748567176567,0.04471082,162.74,162.62,1.9876]
[1748567176754,19.48156857,162.8,162.62,1.9876]
[1748567177159,76.0,162.81,162.62,1.9876]
[1748567177474,0.04370812,162.73,162.7,0.04040928]
[1748567177659,0.04370812,162.73,162.62,1.9876]
[1748567177865,0.04404295,162.69,162.66,0.04265728]
[1748567178070,0.04336244,162.69,162.59,76.0]
[1748567178366,0.04353688,162.66,162.62,0.04577362]
[1748567178667,0.04415775,162.66,162.62,0.04116953]
[1748567179182,0.04415775,162.66,162.51,2.0548]
[1748567179183,0.04415775,162.66,162.51,1.9806]
[1748567179379,74.8,162.7,162.51,1.9806]
[1748567180071,0.03924483,162.62,162.59,0.04447655]
[1748567180261,0.04553974,162.62,162.59,0.04157538]
[1748567180664,0.04553974,162.62,162.51,1.9806]
[1748567180857,1.9929,162.64,162.51,1.9806]
[1748567181059,74.8,162.7,162.53,17.3889059]
[1748567181255,74.8,162.7,162.54,74.82]
[1748567181460,74.8,162.7,162.57,17.3889059]
[1748567181658,0.04506029,162.65,162.62,0.03965916]
[1748567182078,76.8616,162.76,162.62,0.03965916]
[1748567182266,74.82,162.76,162.62,1.9998]
[1748567182964,0.04142993,162.71,162.67,0.03992777]
[1748567183574,2.086,162.79,162.67,0.03992777]
[1748567183779,92.2089059,162.88,162.69,17.3889059]
[1748567183975,74.82,162.88,162.7,1.9751]
[1748567184862,0.04638873,162.81,162.77,0.04047416]
[1748567185067,0.04638873,162.81,162.77,0.04219783]
[1748567186279,0.04638873,162.81,162.68,74.82]
[1748567186477,74.82,162.8,162.62,76.8198]
[1748567186971,2.0341,162.79,162.62,76.8198]
[1748567187367,0.04669447,162.72,162.69,0.03915914]
[1748567187571,0.04340539,162.72,162.69,0.04099388]
[1748567190081,0.04340539,162.72,162.6,530.76]
[1748567190271,2.0996,162.78,162.6,530.76]
[1748567190776,74.82,162.85,162.64,19.44319739]
[1748567191066,0.04330196,162.76,162.73,0.0432246]
[1748567191270,0.04433554,162.76,162.73,0.04375756]
[1748567192175,0.04433554,162.76,162.6,530.76]
[1748567192465,74.82,162.78,162.6,530.76]
[1748567192466,1.9716,162.77,162.6,530.76]
[1748567192689,532.7116,162.77,162.6,530.76]
[1748567193074,0.04099487,162.7,162.67,0.04406133]
[1748567193266,0.04071789,162.7,162.67,0.04096443]
[1748567194579,0.04071789,162.7,162.56,5.9916]
[1748567194895,2.0751,162.7,162.53,74.82]
[1748567195675,0.04711545,162.63,162.6,0.04350013]
[1748567195867,0.04096182,162.63,162.6,0.04350013]
[1748567200174,2.0692,162.75,162.6,0.04350013]
[1748567200383,2.0692,162.75,162.6,74.84]
[1748567200581,2.0692,162.75,162.61,2.0061]
[1748567200778,605.58,162.77,162.61,2.0061]
[1748567200987,2.0692,162.82,162.62,532.9266]
[1748567201171,0.04081209,162.74,162.7,0.03906586]
[1748567201395,0.04084911,162.74,162.7,0.03954022]
[1748567208200,75.6092,162.82,162.7,0.03954022]
[1748567208389,75.6092,162.82,162.7,1.9489]
[1748567208584,2.0692,162.82,162.7,1.9489]
[1748567209009,2.13,162.85,162.7,19.30498067]
[1748567209195,0.04166095,162.79,162.76,0.04466634]
[1748567209488,1.9492,162.87,162.76,0.04186935]
[1748567209689,73.54,162.88,162.75,73.54]
[1748567209890,1.9492,162.93,162.76,1.9645]
[1748567210384,0.04094573,162.86,162.83,0.04444136]
[1748567210590,0.04495001,162.86,162.83,0.03933548]
[1748567220795,0.04495001,162.86,162.75,73.5]
[1748567220998,2.1263,162.89,162.75,73.5]
[1748567221895,0.04184696,162.84,162.8,0.04247775]
[1748567222807,17.35608067,162.83,162.64,17.35608067]
[1748567223005,19.31248067,162.83,162.65,2.0256]
[1748567223892,0.03903868,162.76,162.72,0.04710461]
[1748567224196,0.03903868,162.76,162.72,0.03978356]
[1748567229508,530.54,162.84,162.72,0.03978356]
[1748567229700,73.5,162.86,162.7,73.5]
[1748567229893,73.5,162.86,162.72,17.35608067]
[1748567230501,0.04425962,162.81,162.77,0.04055348]
[1748567231497,530.68,162.92,162.77,0.04055348]
[1748567231720,606.1701,162.92,162.77,77.6046]
[1748567232803,0.03935215,162.86,162.83,0.03990628]
[1748567235301,604.18,162.92,162.83,0.03990628]
[1748567235506,73.5,162.92,162.83,0.03990628]
[1748567235801,2.0663,162.97,162.83,0.03990628]
[1748567236017,2.0663,162.97,162.84,17.35608067]
[1748567236403,0.03877777,162.92,162.89,0.0433389]
[1748567236605,530.56,163.0,162.89,0.0433389]
[1748567236933,530.46,163.08,162.92,17.35608067]
[1748567237208,530.46,163.08,162.93,1.9414]
[1748567237399,530.46,163.08,162.93,3.8863]
[1748567237707,0.04493425,163.02,162.99,0.04068945]
[1748567239101,0.04493425,163.02,162.92,73.48]
[1748567239306,19.37118067,163.03,162.86,74.0854]
[1748567239496,2.0111,163.02,162.86,74.0854]
[1748567239699,4.0507,163.02,162.86,74.0854]
[1748567239994,0.04564037,162.96,162.92,0.04034179]
[1748567240202,0.04564037,162.96,162.92,0.04475061]
[1748567240522,0.04564037,162.96,162.82,530.46]
[1748567240711,72.08,162.97,162.82,532.4454]
[1748567241401,72.08,162.97,162.88,0.04679695]
[1748567241600,0.04188328,162.91,162.88,0.04679695]
[1748567242836,0.04188328,162.91,162.76,17.35608067]
[1748567243125,179.62,162.94,162.77,2.1104]
[1748567243513,89.43608067,162.97,162.77,2.1104]
[1748567243811,0.0416185,162.9,162.86,0.04325897]
[1748567244112,0.0416185,162.9,162.86,0.03918151]
[1748567245009,72.08,162.97,162.86,0.03918151]
[1748567245207,72.08,162.97,162.85,2.1355]
[1748567245625,72.08,162.97,162.86,2.042]
[1748567246114,0.04367444,162.93,162.9,0.04181081]
[1748567246508,0.04367444,162.93,162.79,72.08]
[1748567246710,72.08,162.97,162.8,2.042]
[1748567247218,17.35608067,162.95,162.8,2.042]
[1748567247409,196.67608067,162.95,162.8,2.042]
[1748567247630,0.04430167,162.89,162.86,0.04054602]
[1748567249433,72.08,162.97,162.86,0.04054602]
[1748567249636,2.0058,163.01,162.86,17.35608067]
[1748567249824,2.0058,163.01,162.87,2.0841]
[1748567250420,0.03880612,162.96,162.92,0.04485907]
[1748567253120,530.28,163.06,162.93,72.06]
[1748567253922,547.63608067,163.06,162.93,72.06]
[1748567254137,530.28,163.06,162.88,2.1436]
[1748567254325,0.04384126,163.01,162.98,0.04606052]
[1748567254926,2.09684126,163.01,162.98,0.04606052]
[1748567255216,2.09684126,163.01,162.88,2.1436]
[1748567255417,2.053,163.01,162.88,2.1436]
[1748567256127,0.04052761,162.96,162.93,0.04150505]
[1748567257245,2.0695,163.12,162.94,72.06]
[1748567257624,2.0695,163.12,162.95,2.0803]
[1748567258025,2.0695,163.12,162.96,2.1082]
[1748567258226,0.03928984,163.05,163.02,0.04701207]
[1748567258532,0.04456398,163.05,163.02,0.04568189]
[1748567259519,0.04456398,163.05,162.94,72.06]
[1748567259730,72.06,163.06,162.94,72.06]
[1748567259931,89.35694124,163.06,162.92,2.0365]
[1748567260431,0.03909535,163.01,162.97,0.0416552]
[1748567260736,0.03909535,163.01,162.88,74.0965]
[1748567260944,17.29694124,163.02,162.82,72.04]
[1748567261239,17.29694124,162.98,162.83,216.48184378]
[1748567261432,72.04,162.97,162.83,216.48184378]
[1748567261726,0.04616712,162.92,162.83,216.48184378]
[1748567261934,0.04616712,162.92,162.89,0.04116504]
[1748567262830,74.164,163.03,162.89,0.04116504]
[1748567263032,74.164,163.03,162.87,17.29694124]
[1748567263637,0.04055232,162.97,162.93,0.04333194]
[1748567263934,0.04055232,162.97,162.93,0.04283286]
[1748567267133,0.04055232,162.97,162.83,2.0365]
[1748567267345,17.29694124,162.95,162.82,72.04]
[1748567267542,72.04,162.96,162.77,2.0681]
[1748567267543,17.29694124,162.91,162.77,2.0681]
[1748567268325,0.04618183,162.86,162.82,0.04710986]
[1748567269033,2.07958183,162.86,162.82,0.04710986]
[1748567269443,2.07958183,162.86,162.74,2.0023]
[1748567269444,2.07958183,162.86,162.72,1.9953]
[1748567269736,2.0334,162.86,162.72,1.9953]
[1748567270743,0.04243969,162.81,162.77,0.04146723]
[1748567274234,602.828,162.94,162.77,76.82146723]
[1748567274450,602.828,162.94,162.79,17.29694124]
[1748567274647,602.828,162.94,162.8,4.0088]
[1748567274838,600.74,162.94,162.8,4.0088]
[1748567275340,0.04160189,162.89,162.85,0.04059882]
[1748567290768,0.04160189,162.89,162.7,70.64]
[1748567291055,1.9618,162.89,162.72,6.2893]
[1748567291647,0.04297939,162.82,162.79,0.03933163]
[1748567291846,0.04297939,162.82,162.79,0.03961105]
[1748567291847,0.04480697,162.82,162.79,0.03961105]
[1748567292450,70.64,162.9,162.79,0.03961105]
[1748567292746,70.64,162.9,162.77,70.64]
[1748567293453,0.03949637,162.85,162.82,0.04622651]
[1748567307948,71.1523,162.96,162.82,0.04622651]
[1748567308155,71.1523,162.96,162.81,3.9435]
[1748567308957,0.03905019,162.9,162.87,0.04042811]
[1748567311566,0.03905019,162.9,162.73,11.30293398]
[1748567311761,2.0002,162.91,162.74,177.0954]
[1748567312355,2.0002,162.91,162.74,188.33833398]
[1748567312555,0.0454432,162.86,162.82,0.04711712]
[1748567312765,2.0123,162.96,162.82,0.04711712]
[1748567313060,2.0123,162.96,162.78,11.30293398]
[1748567313258,2.0123,162.96,162.82,11.30293398]
[1748567313560,2.0123,162.96,162.83,6.1009]
[1748567313748,2.0123,162.96,162.84,69.14]
[1748567313953,0.04664941,162.91,162.88,0.04238257]
[1748567315757,599.44,163.0,162.88,0.04238257]
[1748567315949,599.44,163.0,162.85,11.30293398]
[1748567316459,599.44,163.0,162.84,69.14]
[1748567316761,0.04710637,162.94,162.9,0.04514325]
[1748567316962,0.04710637,162.94,162.9,0.04030876]
[1748567324756,69.14,162.93,162.79,4.1337]
[1748567324956,4.0268,162.92,162.79,4.1337]
[1748567325867,0.03989281,162.87,162.84,0.04033125]
[1748567329873,67.62,162.95,162.84,0.04033125]
[1748567330062,4.0326,162.97,162.84,67.62]
[1748567331067,0.04640546,162.92,162.89,0.04478223]
[1748567331458,597.92,163.0,162.89,0.04478223]
[1748567331459,67.62,163.0,162.89,0.04478223]
[1748567331670,4.1861,163.03,162.86,2.0579]
[1748567331969,4.1861,163.03,162.89,11.30293398]
[1748567332477,0.03960198,162.98,162.94,0.03907933]
[1748567335090,2.0735,163.06,162.94,0.03907933]
[1748567335292,2.0735,163.06,162.94,1.9479]
[1748567336183,0.03895758,163.02,162.98,0.03968656]
[1748567338065,0.03895758,163.02,162.99,67.6]
[1748567338272,4.0639,163.09,162.99,67.6]
[1748567338575,1.9751,163.09,162.99,67.6]
[1748567338777,4.2458,163.14,163.0,11.30293398]
[1748567339182,4.2458,163.14,163.05,0.03894036]
[1748567339183,0.03977606,163.09,163.05,0.03894036]
[1748567339487,11.30293398,163.3,163.06,67.58]
[1748567339488,67.58,163.2,163.06,67.58]
[1748567339797,264.11229568,163.43,163.07,534.0233]
[1748567339990,11.24912927,163.31,163.12,11.24912927]
[1748567340177,4.2458,163.3,163.12,11.24912927]
[1748567340373,0.0423858,163.23,163.19,0.0424868]
[1748567340569,0.0423858,163.23,163.19,0.04174853]
[1748567341004,4.2458,163.3,163.19,0.04174853]
[1748567341005,4.2458,163.3,163.19,11.29648885]
[1748567341188,531.969,163.36,163.19,11.25474032]
[1748567341402,2.1459,163.35,163.23,11.25474032]
[1748567341597,2.1459,163.35,163.24,67.58]
[1748567341897,2.0091,163.42,163.24,67.58]
[1748567342092,2.0091,163.42,163.31,17.26119958]
[1748567342093,2.0514,163.42,163.31,17.26119958]
[1748567342300,2.0514,163.42,163.32,69.6944]
[1748567343069,67.54,163.5,163.32,69.6944]
[1748567343274,0.04505004,163.43,163.39,0.044826]
[1748567343584,0.04505004,163.43,163.39,0.04053977]
[1748567343781,2.0514,163.49,163.39,67.58053977]
[1748567343991,529.64,163.53,163.34,17.21338658]
[1748567344172,2.0514,163.52,163.35,2.1544]
[1748567344388,2.0514,163.52,163.36,17.20500412]
[1748567344583,2.0514,163.52,163.35,2.1544]
[1748567344776,17.21317445,163.48,163.24,279.57529432]
[1748567344975,17.21628862,163.47,163.29,2.0707]
[1748567345177,0.04516477,163.38,163.34,0.03924835]
[1748567345381,0.04269148,163.38,163.34,0.03874356]
[1748567349492,90.8389801,163.38,163.16,67.46]
[1748567349692,17.21628862,163.34,163.16,67.46]
[1748567349885,2.0854,163.33,163.16,67.46]
[1748567350488,0.0404746,163.26,163.23,0.04190693]
[1748567350782,0.04535215,163.26,163.23,0.04565474]
[1748567352488,0.04535215,163.26,163.16,67.46]
[1748567352691,17.21628862,163.3,163.16,67.46]
[1748567353293,67.46,163.31,163.16,67.46]
[1748567353487,0.04221621,163.25,163.22,0.03957539]
[1748567353990,6.16221621,163.25,163.13,529.1]
[1748567354294,17.21628862,163.26,163.13,529.1]
[1748567354511,768.52,163.31,163.13,529.1]
[1748567354707,785.73628862,163.31,163.13,529.1]
[1748567354999,2.1461,163.33,163.2,0.04677047]
[1748567355187,2.1461,163.33,163.19,67.46]
[1748567356092,0.04330475,163.28,163.24,0.03987754]
[1748567358505,598.6237,163.39,163.24,0.03987754]
[1748567358698,598.6237,163.39,163.2,19.17748862]
[1748567359094,2.0957,163.38,163.2,19.17748862]
[1748567359496,0.04467654,163.31,163.27,0.04626]
[1748567359700,0.04467654,163.31,163.27,0.040624]
[1748567365029,89.38096516,163.31,163.1,66.0]
[1748567365231,17.21628862,163.27,163.14,2.1445]
[1748567365523,2.0222,163.26,163.1,66.0]
[1748567365708,17.21628862,163.23,163.1,66.0]
[1748567366101,0.03971622,163.18,163.15,0.04092753]
[1748567377507,0.03971622,163.18,163.05,595.02]
[1748567377708,2.0444,163.19,163.05,595.02]
[1748567377907,66.04,163.18,163.05,66.04]
[1748567378123,17.21628862,163.16,163.05,66.04]
[1748567378323,2.1103,163.15,163.05,66.04]
[1748567378506,2.1103,163.15,163.01,1.9753]
[1748567378702,0.04275137,163.12,163.08,0.03973071]
[1748567381428,17.25903999,163.12,163.08,0.03973071]
[1748567381626,17.25903999,163.12,163.0,66.04]
[1748567381627,66.06,163.11,163.0,66.04]
[1748567381906,66.06,163.11,162.97,529.24]
[1748567382620,0.04192412,163.06,163.02,0.04538129]
[1748567384220,17.21628862,163.04,162.85,66.08]
[1748567384519,17.21628862,163.0,162.86,2.0378]
[1748567384718,68.2288,163.03,162.86,2.0378]
[1748567384914,68.2288,163.03,162.86,19.25408862]
[1748567385214,0.03936526,162.96,162.93,0.04573863]
[1748567385421,0.04116843,162.96,162.93,0.04202157]
[1748567388712,66.08,163.03,162.93,0.04202157]
[1748567388915,66.08,163.03,162.92,64.7]
[1748567389520,19.22028862,163.06,162.92,64.7]
[1748567389705,0.04513671,163.01,162.97,0.03955353]
[1748567394417,1.9514,163.11,162.97,17.25584215]
[1748567394633,1.9514,163.11,162.95,1.984]
[1748567394920,1.9514,163.11,162.95,19.20028862]
[1748567395312,1.9514,163.11,162.96,62.0]
[1748567395713,0.04239429,163.05,163.02,0.04298357]
[1748567403925,17.25868291,163.05,163.02,0.04298357]
[1748567404120,17.25868291,163.05,162.93,2.1472]
[1748567404327,171.0582,163.04,162.89,4.1768]
[1748567404723,1.9853,163.03,162.89,4.1768]
[1748567405030,1.9853,163.03,162.94,0.04676796]
[1748567405031,0.03914527,162.98,162.94,0.04676796]
[1748567409523,64.75914527,162.98,162.84,4.2153]
[1748567409722,81.93628862,162.98,162.84,4.2153]
[1748567409920,2.0655,162.97,162.84,4.2153]
[1748567410531,2.0655,162.97,162.89,0.04218206]
[1748567410532,0.04508591,162.92,162.89,0.04218206]
[1748567412229,0.04508591,162.92,162.8,207.94238538]
[1748567412427,64.74,162.91,162.8,207.94238538]
[1748567413044,17.21628862,162.9,162.75,64.74]
[1748567413247,0.04288022,162.84,162.81,0.04093974]
[1748567417335,1.9438,162.93,162.81,0.04093974]
[1748567417533,1.9438,162.93,162.77,185.65628862]
[1748567418233,0.04621835,162.87,162.83,0.04267849]
[1748567418438,0.04621835,162.87,162.83,0.03956573]
[1748567421357,17.26250697,162.87,162.73,6.1706]
[1748567421569,19.31728862,162.86,162.73,6.1706]
[1748567421754,65.5427,162.85,162.73,6.1706]
[1748567422436,0.04183336,162.81,162.77,0.04490341]
[1748567424357,65.5796,162.91,162.77,63.48490341]
[1748567424650,65.5796,162.91,162.79,17.21628862]
[1748567425343,0.04239703,162.87,162.83,0.03928561]
[1748567430447,63.44,162.96,162.84,63.44]
[1748567430639,2.1396,162.97,162.85,4.233]
[1748567431267,17.21628862,162.96,162.73,530.34]
[1748567431573,0.04540364,162.88,162.73,593.78]
[1748567431760,80.65628862,162.88,162.73,595.879]
[1748567431960,2.1436,162.87,162.73,65.539]
[1748567432158,2.1436,162.87,162.73,2.099]
[1748567432353,2.1436,162.87,162.68,80.65628862]
[1748567432640,0.04607174,162.79,162.76,0.04170219]
[1748567432842,0.04607174,162.79,162.76,0.04194115]
[1748567432843,0.0456294,162.79,162.76,0.04194115]
[1748567440159,0.0456294,162.79,162.69,2.099]
[1748567440160,0.0456294,162.79,162.68,63.44]
[1748567440463,2.14,162.79,162.66,2.0346]
[1748567440661,169.3,162.79,162.66,2.0346]
[1748567441154,0.04356847,162.74,162.71,0.04168282]
[1748567443467,593.86,162.81,162.71,0.04168282]
[1748567443657,593.86,162.81,162.7,17.21628862]
[1748567443859,63.44,162.81,162.7,80.67628862]
[1748567444458,0.04688594,162.77,162.74,0.03921988]
[1748567447677,2.1203,162.85,162.74,17.2555085]
[1748567447864,63.46,162.86,162.75,1.9612]
[1748567448668,0.04313592,162.82,162.79,0.04024429]
[1748567449081,4.0813,162.89,162.79,0.04024429]
[1748567449292,592.78,162.97,162.81,17.21628862]
[1748567449490,2.0894,162.96,162.81,17.21628862]
[1748567449971,0.04223058,162.9,162.87,0.0467874]
[1748567457778,62.16,163.02,162.88,17.21628862]
[1748567458661,0.04331129,162.97,162.93,0.04162839]
[1748567461280,0.04331129,162.97,162.86,2.1427]
[1748567461486,0.04331129,162.97,162.69,17.21628862]
[1748567461487,17.21628862,163.0,162.79,79.35628862]
[1748567461667,17.21628862,163.0,162.79,83.52288862]
[1748567462376,0.04294511,162.93,162.89,0.0399124]
[1748567462677,0.04294511,162.93,162.89,0.04031021]
[1748567465373,0.04294511,162.93,162.77,530.6]
[1748567465578,4.076,162.94,162.77,530.6]
[1748567466379,0.04428521,162.87,162.84,0.04028335]
[1748567466581,0.03991637,162.87,162.84,0.04036958]
[1748567466979,0.03991637,162.87,162.76,62.14]
[1748567467177,62.14,162.88,162.76,62.14]
[1748567467582,79.35628862,162.88,162.76,62.14]
[1748567467886,165.54,162.87,162.71,62.14]
[1748567468084,0.03874774,162.81,162.77,0.04391555]
[1748567468383,0.03874774,162.81,162.77,0.04285087]
[1748567471089,62.17874774,162.81,162.77,0.04285087]
[1748567471303,62.17874774,162.81,162.67,1.9624]